bitfinex/quotes_ETHUSD_20250511
["timestamp","ask_amount","ask_price","bid_price","bid_amount"]
[1746991112647,11.60078085,2514.6,2514.1,0.8533]
[1746991113367,3.97740832,2514.2,2514.1,0.05]
[1746991113530,7.41640832,2514.2,2514.1,0.05]
[1746991114837,7.63841984,2514.2,2514.1,0.05]
[1746991115354,12.53387861,2514.2,2514.1,0.05]
[1746991116333,27.45280131,2514.2,2514.1,0.05]
[1746991118273,15.14093422,2514.2,2514.1,0.05]
[1746991118486,18.02593422,2514.2,2514.1,0.05]
[1746991118782,21.78133102,2514.2,2514.1,0.05]
[1746991119132,4.7289227,2514.2,2514.1,0.05]
[1746991119350,3.97662367,2514.7,2514.1,0.8683]
[1746991119683,3.97740703,2514.3,2514.1,0.05]
[1746991121254,7.41840832,2514.2,2514.1,0.05]
[1746991122145,7.64078352,2514.2,2514.1,0.05]
[1746991123978,10.53278352,2514.2,2514.1,0.05]
[1746991124562,15.26170622,2514.2,2514.1,0.05]
[1746991124972,3.97840904,2513.6,2513.2,0.8046]
[1746991125285,7.5829227,2513.6,2513.2,0.8046]
[1746991127001,4.6789227,2513.6,2513.2,0.8046]
[1746991128474,6.87707965,2513.8,2513.2,0.8046]
[1746991128853,3.97821663,2513.7,2513.2,0.8046]
[1746991130790,2.899,2513.8,2513.2,0.8046]
[1746991130958,3.97867241,2513.5,2513.2,0.8046]
[1746991131486,3.97821204,2513.7,2513.2,0.8046]
[1746991131689,3.97839536,2513.6,2513.2,0.8046]
[1746991133581,3.97856299,2513.5,2513.2,0.8046]
[1746991134293,3.97883261,2513.3,2513.1,0.05]
[1746991134509,3.97899092,2513.2,2513.1,0.05]
[1746991135410,6.85699092,2513.2,2513.1,0.05]
[1746991137527,11.53591362,2513.2,2513.1,0.05]
[1746991138321,4.6789227,2513.2,2513.1,0.05]
[1746991138480,7.5469227,2513.2,2513.1,0.05]
[1746991138882,4.6789227,2513.2,2513.1,0.05]
[1746991139092,4.6789227,2513.2,2513.1,0.8755]
[1746991140388,4.6789227,2513.9,2513.3,8.0]
[1746991140588,8.65686159,2513.9,2513.2,0.8255]
[1746991140914,3.97808724,2513.8,2513.2,0.8255]
[1746991141217,4.6789227,2513.9,2513.2,0.8255]
[1746991141621,8.65684492,2513.9,2513.2,0.8255]
[1746991142200,3.97823868,2513.7,2513.2,0.8255]
[1746991142404,3.9781057,2513.8,2513.2,0.8255]
[1746991143232,8.65688679,2513.9,2513.2,0.8255]
[1746991143440,3.97814907,2513.8,2513.2,0.8255]
[1746991143615,3.97804121,2513.8,2513.2,0.8255]
[1746991143940,3.97804907,2513.8,2513.2,0.8255]
[1746991144163,3.97837773,2513.6,2513.2,0.8255]
[1746991145244,3.97853258,2513.5,2513.2,0.8255]
[1746991145402,3.97853258,2513.5,2513.1,0.05]
[1746991145403,3.97899092,2513.2,2513.1,0.05]
[1746991148046,10.03101362,2513.2,2513.1,0.05]
[1746991148220,9.48101362,2513.2,2513.1,0.05]
[1746991148403,8.65791362,2513.2,2513.1,0.05]
[1746991149049,8.88072757,2513.2,2513.1,0.05]
[1746991149644,9.66852757,2513.2,2513.1,0.05]
[1746991150442,10.21852757,2513.2,2513.1,0.05]
[1746991151022,8.88072757,2513.2,2513.1,0.05]
[1746991153254,9.65592757,2513.2,2513.1,0.05]
[1746991153556,3.98057479,2512.2,2512.1,0.05]
[1746991153756,6.85457479,2512.2,2512.1,0.05]
[1746991153928,7.49394194,2512.2,2512.1,0.05]
[1746991154657,7.71675589,2512.2,2512.1,0.05]
[1746991155233,7.62738874,2512.2,2512.1,0.05]
[1746991156141,4.20338874,2512.2,2512.1,0.05]
[1746991156321,3.09481395,2512.2,2512.1,0.05]
[1746991156523,7.07538874,2512.2,2512.1,0.05]
[1746991156719,6.85257479,2512.2,2512.1,0.05]
[1746991157026,3.98057479,2512.2,2512.1,0.05]
[1746991157247,7.51910861,2512.2,2512.1,0.05]
[1746991158545,12.19803131,2512.2,2512.1,0.05]
[1746991158873,12.44803131,2512.2,2512.1,0.05]
[1746991159760,13.25943131,2512.2,2512.1,0.05]
[1746991159961,13.4817033,2512.2,2512.1,0.05]
[1746991160585,4.90119469,2512.2,2512.1,0.05]
[1746991160757,8.88176948,2512.2,2512.1,0.05]
[1746991160958,9.20949749,2512.2,2512.1,0.05]
[1746991161162,9.87803131,2512.2,2512.1,0.05]
[1746991164050,17.51888051,2512.2,2512.1,0.05]
[1746991164780,17.74096873,2512.2,2512.1,0.05]
[1746991166757,27.93096873,2512.2,2512.1,0.05]
[1746991168490,0.55,2511.6,2511.1,0.05]
[1746991168694,7.4879227,2511.5,2511.1,0.05]
[1746991168879,2.859,2511.4,2511.1,0.05]
[1746991169086,6.84092163,2511.4,2511.1,0.05]
[1746991169289,2.859,2511.4,2511.1,0.05]
[1746991169696,4.6289227,2511.5,2511.2,0.8149]
[1746991172013,3.98191645,2511.4,2511.2,0.8149]
[1746991173483,8.61083915,2511.4,2511.2,0.8149]
[1746991173817,4.6289227,2511.4,2511.2,0.8149]
[1746991179324,4.6289227,2512.1,2511.5,0.7914]
[1746991179634,2.859,2512.6,2511.7,0.7914]
[1746991179925,3.98013944,2512.5,2511.9,0.7914]
[1746991180128,2.859,2512.6,2511.9,0.7914]
[1746991180427,6.83897941,2512.6,2511.9,1.95644]
[1746991180943,6.83897941,2512.6,2511.9,0.7914]
[1746991181237,1.3,2512.4,2511.9,0.7914]
[1746991183129,5.28025797,2512.4,2511.9,0.7914]
[1746991183460,1.3,2512.4,2511.9,0.7914]
[1746991184854,3.9806694,2512.2,2511.9,0.7914]
[1746991185252,1.3,2512.4,2511.6,0.7571]
[1746991185567,3.98083245,2512.1,2511.6,0.7571]
[1746991185768,3.98062665,2512.2,2511.6,0.7571]
[1746991186447,3.98057479,2512.2,2511.6,0.7571]
[1746991186761,3.98081219,2512.1,2511.6,0.7571]
[1746991189038,3.9812285,2511.8,2511.6,0.7571]
[1746991189262,3.98113302,2511.9,2511.6,0.7571]
[1746991189543,3.98130099,2511.8,2511.6,0.7571]
[1746991190675,3.98130099,2511.8,2511.1,8.05]
[1746991190876,3.98130099,2511.8,2511.2,0.7631]
[1746991192452,7.62966201,2512.0,2511.2,0.7631]
[1746991192658,3.98178799,2511.5,2511.2,0.7631]
[1746991193477,3.6487,2512.0,2511.2,0.7631]
[1746991193866,4.6289227,2512.1,2511.2,0.7631]
[1746991194073,7.06204051,2511.9,2511.2,0.7631]
[1746991194487,11.69096321,2511.9,2511.2,0.7631]
[1746991194859,11.46808043,2511.9,2511.2,0.7631]
[1746991195670,3.98122007,2511.8,2511.2,0.7631]
[1746991197074,3.98154489,2511.6,2511.2,0.7631]
[1746991197558,3.98139734,2511.7,2511.2,0.7631]
[1746991197559,3.98141924,2511.7,2511.2,0.7631]
[1746991198900,12.08852988,2511.9,2511.2,0.7631]
[1746991199197,3.98137051,2511.7,2511.2,0.7631]
[1746991200400,11.46700211,2511.9,2511.2,0.7631]
[1746991200574,7.4859227,2511.9,2511.2,0.7631]
[1746991200772,4.6289227,2511.9,2511.2,8.7631]
[1746991201023,4.6289227,2511.9,2511.4,0.8283]
[1746991203679,4.6289227,2511.9,2511.4,0.86811483]
[1746991203880,4.6289227,2511.9,2511.4,0.8283]
[1746991206496,3.98064759,2512.2,2511.4,0.8283]
[1746991206873,4.6289227,2512.3,2511.4,0.86811295]
[1746991207070,4.6289227,2512.3,2511.6,0.8013]
[1746991207766,4.6289227,2512.3,2511.3,0.8013]
[1746991207767,3.98102378,2512.0,2511.3,0.8013]
[1746991208075,3.9809678,2512.0,2511.3,0.8013]
[1746991208590,3.9807442,2512.1,2511.3,0.8013]
[1746991208790,3.98058542,2512.2,2511.3,0.8293]
[1746991208999,3.98058542,2512.2,2511.4,1.71223]
[1746991209196,3.98104035,2512.0,2511.4,0.8293]
[1746991209404,3.98081351,2512.1,2511.4,0.8293]
[1746991210889,1.3,2512.4,2511.4,0.8293]
[1746991211087,1.3,2512.4,2511.7,0.8329]
[1746991211398,3.98007731,2512.6,2512.0,0.8329]
[1746991211595,4.6289227,2512.5,2512.0,0.8329]
[1746991211907,8.60914349,2512.5,2512.0,0.8329]
[1746991212287,4.6289227,2512.5,2512.0,0.8329]
[1746991213011,0.6,2512.3,2512.0,0.8329]
[1746991213192,0.6,2512.3,2512.0,1.72017081]
[1746991213706,0.6,2512.3,2512.1,0.8329]
[1746991216104,0.6,2512.3,2512.2,37.583793]
[1746991216407,3.97890548,2513.3,2512.2,40.437793]
[1746991216611,8.60782818,2513.3,2512.4,0.7807]
[1746991216910,8.60782818,2513.3,2512.5,0.7807]
[1746991217070,3.97899092,2513.2,2512.5,0.7807]
[1746991217269,3.97923653,2513.1,2512.5,0.7807]
[1746991217697,3.97907695,2513.2,2512.5,0.7807]
[1746991218708,3.97917793,2513.1,2512.5,0.7807]
[1746991220688,3.97906841,2513.2,2512.5,0.7807]
[1746991221499,3.97916183,2513.1,2512.5,0.7807]
[1746991221699,3.9790639,2513.2,2512.5,0.7807]
[1746991221902,8.60788215,2513.3,2512.5,1.94437]
[1746991223206,3.97900921,2513.2,2512.5,1.94437]
[1746991223408,3.97920332,2513.1,2512.5,1.94437]
[1746991223610,3.97920332,2513.1,2512.5,0.7807]
[1746991224210,4.6289227,2513.3,2512.5,0.7807]
[1746991224411,3.97907938,2513.2,2512.5,0.7807]
[1746991224594,8.60784082,2513.3,2512.5,0.7807]
[1746991225083,4.6289227,2513.5,2512.6,0.86249719]
[1746991225416,4.6289227,2513.5,2512.8,0.8227]
[1746991225598,3.97854625,2513.5,2513.0,0.8227]
[1746991225918,3.97877445,2513.4,2513.0,0.8227]
[1746991226583,3.97854019,2513.5,2513.0,0.8227]
[1746991226778,8.60721205,2513.7,2513.0,0.8227]
[1746991227718,3.97837103,2513.6,2513.0,0.8227]
[1746991228520,8.60723941,2513.7,2513.0,0.8227]
[1746991228717,3.97797157,2513.9,2513.1,0.86249069]
[1746991229022,3.97837432,2513.6,2513.1,0.8227]
[1746991231321,8.60749774,2513.5,2513.1,0.8227]
[1746991231480,4.6289227,2513.5,2513.1,0.8227]
[1746991233515,3.97868921,2513.4,2513.1,0.8227]
[1746991233723,8.60751869,2513.5,2513.1,0.8227]
[1746991234290,4.6289227,2513.5,2513.1,0.8227]
[1746991236496,8.6074483,2513.5,2513.1,0.8227]
[1746991237360,3.97868605,2513.4,2513.1,0.8227]
[1746991237838,10.50666169,2513.5,2513.1,0.8227]
[1746991238139,4.6289227,2513.5,2513.1,0.8227]
[1746991239212,8.60746676,2513.5,2513.1,0.8227]
[1746991239911,4.6289227,2513.5,2513.1,0.8227]
[1746991241309,2.6836507,2513.3,2512.6,2.85]
[1746991241644,3.97900335,2513.2,2512.7,0.8051]
[1746991242443,3.97923931,2513.1,2512.7,0.8051]
[1746991242631,2.6836507,2512.9,2512.1,0.8051]
[1746991242831,5.87946087,2512.4,2512.1,0.8051]
[1746991243034,5.87946087,2512.4,2511.5,0.8051]
[1746991243217,5.87946087,2512.4,2511.6,0.88051]
[1746991243417,3.98031017,2512.4,2511.6,0.88051]
[1746991244114,3.98031017,2512.4,2511.5,0.8051]
[1746991244115,3.98074301,2512.1,2511.5,0.8051]
[1746991244737,4.6289227,2512.1,2511.5,0.8051]
[1746991245055,4.6289227,2512.7,2511.6,8.8051]
[1746991245255,0.55,2513.0,2512.3,0.8051]
[1746991245407,4.6289227,2512.9,2512.3,0.8051]
[1746991245609,8.60846946,2512.9,2512.3,0.8051]
[1746991245949,4.6289227,2512.9,2512.3,0.8051]
[1746991246447,3.97971852,2512.8,2512.3,0.8051]
[1746991246808,8.60844588,2512.9,2512.3,0.8051]
[1746991247014,3.97964967,2512.8,2512.3,0.8051]
[1746991247445,3.97978949,2512.7,2512.3,0.8051]
[1746991247961,8.58325594,2512.9,2511.8,8.0]
[1746991248143,3.98037083,2512.4,2511.9,0.8053]
[1746991248347,3.98042567,2512.3,2511.9,0.8053]
[1746991248718,7.56519485,2512.5,2511.9,0.8053]
[1746991249257,3.98049557,2512.3,2511.9,0.8053]
[1746991249426,3.98057479,2512.2,2511.9,0.8053]
[1746991249625,3.98049557,2512.3,2511.6,0.8168]
[1746991249833,3.98041635,2512.3,2511.6,1.98348]
[1746991250020,3.98061217,2512.2,2511.6,1.98348]
[1746991250653,3.98048435,2512.3,2511.6,1.98348]
[1746991251151,3.98062562,2512.2,2511.6,1.98348]
[1746991251457,3.98062562,2512.2,2511.6,0.8168]
[1746991253314,3.98049818,2512.3,2511.6,0.8168]
[1746991254439,8.75049818,2512.3,2511.6,0.8168]
[1746991254861,11.59749818,2512.3,2511.6,0.8168]
[1746991255845,3.95433324,2511.9,2511.2,0.8256]
[1746991256039,5.5436,2512.2,2511.2,0.8256]
[1746991256040,4.77,2512.1,2511.2,0.8256]
[1746991256248,2.847,2512.0,2511.2,0.8256]
[1746991259056,6.82793147,2512.0,2511.2,0.8256]
[1746991259256,2.847,2512.0,2511.2,0.8256]
[1746991259823,4.77,2512.1,2511.2,0.8256]
[1746991260024,4.77,2512.1,2511.4,8.0]
[1746991260271,4.77,2512.1,2511.6,0.7827]
[1746991260453,2.846,2512.2,2511.6,0.7827]
[1746991261250,4.77,2512.3,2511.6,0.7827]
[1746991261454,4.77,2512.3,2511.6,0.82251424]
[1746991263062,4.77,2512.3,2511.6,0.7827]
[1746991263449,4.77,2512.3,2511.6,0.82251043]
[1746991264556,4.77,2512.3,2511.6,0.7827]
[1746991265266,4.77,2512.3,2511.6,1.76987818]
[1746991265571,3.98058859,2512.2,2511.6,1.76987818]
[1746991265866,1.90085336,2512.0,2511.6,0.7827]
[1746991266670,3.9813672,2511.7,2511.2,0.7858]
[1746991266887,1.90085336,2511.6,2511.2,0.7858]
[1746991267641,5.88239867,2511.6,2511.2,0.7858]
[1746991268176,6.67709867,2511.6,2511.2,0.7858]
[1746991268380,1.90085336,2511.4,2511.0,0.7858]
[1746991268545,1.90085336,2511.2,2511.0,0.7858]
[1746991268967,1.90085336,2511.2,2511.1,0.04552397]
[1746991269282,3.98203512,2511.3,2511.1,0.04552397]
[1746991270041,2.845,2511.4,2511.1,0.04552397]
[1746991272282,6.82687081,2511.4,2511.1,0.04552397]
[1746991273446,2.845,2511.4,2511.1,0.04552397]
[1746991273963,6.82691498,2511.4,2511.1,0.04552397]
[1746991274688,3.98201512,2511.3,2511.1,0.04552397]
[1746991274915,4.50751205,2511.2,2511.1,0.04552397]
[1746991275093,14.05217197,2511.2,2511.1,0.04552397]
[1746991275394,24.71293912,2511.2,2511.1,0.04552397]
[1746991275883,24.46476454,2511.2,2511.1,0.04552397]
[1746991276617,1.3425,2510.7,2510.1,0.05]
[1746991276767,4.53374631,2510.2,2510.1,0.05]
[1746991276961,5.22447603,2510.2,2510.1,0.05]
[1746991277169,10.00072234,2510.2,2510.1,0.05]
[1746991279022,4.67447603,2510.2,2510.1,0.05]
[1746991279174,4.67447603,2510.6,2510.1,0.05]
[1746991279604,4.67447603,2510.6,2510.2,0.8192]
[1746991281685,2.843,2510.8,2510.2,0.8192]
[1746991282606,3.98303059,2510.7,2510.2,0.8192]
[1746991283605,0.55,2510.5,2510.1,0.05]
[1746991283997,5.48427603,2510.6,2510.1,0.05]
[1746991283998,4.67447603,2510.6,2510.1,0.05]
[1746991284211,7.51647603,2510.6,2510.1,0.05]
[1746991289128,4.67447603,2510.6,2510.1,0.05]
[1746991290123,4.67447603,2510.9,2510.2,0.7774]
[1746991293223,5.686,2511.1,2510.2,0.7774]
[1746991294022,9.66836844,2511.1,2510.2,0.7774]
[1746991294599,2.846,2511.1,2510.3,8.7774]
[1746991294951,7.51447603,2511.4,2510.5,0.7774]
[1746991295228,4.67447603,2511.4,2510.7,0.7774]
[1746991295397,4.67447603,2511.5,2510.7,0.7774]
[1746991297328,4.67447603,2511.5,2510.6,0.7725]
[1746991298633,4.67447603,2511.9,2510.8,0.7725]
[1746991298928,4.67447603,2512.1,2511.1,0.7785]
[1746991299101,4.67447603,2512.4,2511.3,0.7785]
[1746991299423,4.67447603,2512.4,2511.5,0.7785]
[1746991299742,0.73698004,2512.5,2511.5,0.7785]
[1746991300094,0.73698004,2512.5,2511.3,0.7785]
[1746991303125,0.73698004,2512.5,2511.5,0.7785]
[1746991303315,0.73698004,2512.5,2511.7,0.7886]
[1746991303506,0.73698004,2512.5,2511.8,0.87886]
[1746991309331,0.792,2512.6,2511.8,0.87886]
[1746991309519,4.77198315,2512.6,2511.8,0.87886]
[1746991310235,3.95751205,2512.1,2511.7,0.7886]
[1746991310408,11.54082765,2512.1,2511.3,0.8066]
[1746991310608,7.56001205,2512.1,2511.3,0.8066]
[1746991312729,11.54074732,2512.1,2511.3,0.8066]
[1746991314039,4.53089942,2512.0,2511.3,0.8066]
[1746991317552,9.20537545,2512.0,2511.3,0.8066]
[1746991318850,5.22447603,2512.0,2511.3,0.8066]
[1746991319057,4.67447603,2512.0,2511.4,0.03981997]
[1746991319344,9.4130689,2512.7,2511.7,0.7959]
[1746991319549,9.4130689,2512.7,2511.7,0.83570951]
[1746991319920,7.51247603,2512.7,2511.7,0.83570951]
[1746991320245,4.67447603,2512.7,2511.7,0.83570951]
[1746991320425,4.67447603,2512.7,2511.9,0.7959]
[1746991320621,4.67447603,2512.7,2512.1,0.7959]
[1746991320822,3.9792267,2513.1,2512.1,0.7959]
[1746991320823,4.67447603,2513.1,2512.3,0.7959]
[1746991321050,4.67447603,2513.1,2512.8,0.7959]
[1746991325663,0.05,2513.4,2512.8,0.7959]
[1746991325829,0.05,2513.4,2513.2,8.0]
[1746991326038,0.05,2513.4,2513.3,55.78183948]
[1746991326237,4.67447603,2514.7,2513.4,8.0]
[1746991326531,3.95101308,2515.1,2513.3,54.93095801]
[1746991326532,3.95101308,2514.8,2513.6,0.8111]
[1746991326735,7.92748964,2514.8,2513.8,8.0]
[1746991327071,3.97667936,2514.7,2513.8,8.0]
[1746991327234,3.97679239,2514.6,2513.8,8.0]
[1746991327645,3.97669712,2514.7,2513.8,8.0]
[1746991327974,3.97669712,2514.7,2513.6,0.8111]
[1746991328140,3.97669712,2514.7,2513.7,8.0]
[1746991328343,3.97669712,2514.7,2513.8,1.16391]
[1746991329078,3.95101308,2514.5,2513.7,8.0]
[1746991329245,7.92798474,2514.5,2513.7,8.0]
[1746991329446,0.55,2514.3,2513.6,0.8111]
[1746991329855,3.9775029,2514.2,2513.6,0.8111]
[1746991330060,3.95101308,2513.9,2513.3,0.8262]
[1746991330265,3.97816816,2513.8,2513.3,0.8262]
[1746991330462,3.97816862,2513.8,2513.3,0.8262]
[1746991330671,3.97816862,2513.8,2513.0,2.828]
[1746991330672,3.97835088,2513.7,2513.0,0.8262]
[1746991330850,3.97844386,2513.6,2513.0,0.8262]
[1746991331053,3.95101308,2513.3,2512.7,0.8262]
[1746991331307,4.67447603,2514.1,2512.8,0.03979708]
[1746991331590,4.67447603,2514.1,2513.1,0.8262]
[1746991331886,4.67447603,2514.1,2513.3,8.0]
[1746991332477,7.50047603,2514.1,2513.3,8.0]
[1746991333290,11.4780448,2514.1,2513.3,8.0]
[1746991335112,3.97773736,2514.0,2513.3,8.0]
[1746991335413,3.97822283,2513.7,2513.2,0.8262]
[1746991335616,0.05,2514.4,2513.2,8.8262]
[1746991335821,0.05,2514.4,2513.8,0.7836]
[1746991336115,4.02712822,2514.4,2513.8,0.7836]
[1746991336418,0.05,2514.4,2513.8,0.7836]
[1746991337378,0.05,2514.4,2513.8,0.82337859]
[1746991338617,0.05,2514.4,2513.8,0.7836]
[1746991339023,3.95101308,2514.2,2513.5,0.7656]
[1746991339316,3.97774904,2514.0,2513.5,0.7656]
[1746991339815,7.92846927,2514.2,2513.5,0.7656]
[1746991340113,3.95101308,2514.2,2513.5,0.7656]
[1746991340311,3.97782393,2514.0,2513.5,0.7656]
[1746991340481,6.80182393,2514.0,2513.5,0.7656]
[1746991340681,6.80180288,2514.0,2513.5,0.7656]
[1746991341313,2.824,2514.0,2513.5,0.7656]
[1746991341883,6.80174191,2514.0,2513.5,0.7656]
[1746991343442,2.824,2514.0,2513.5,0.7656]
[1746991344206,6.80174356,2514.0,2513.5,0.7656]
[1746991345510,6.80174961,2514.0,2513.5,0.7656]
[1746991345714,3.97822195,2513.7,2513.1,0.7921]
[1746991345950,3.97822195,2513.7,2513.2,1.16191]
[1746991346415,8.65259995,2513.8,2513.2,1.16191]
[1746991347446,3.97819946,2513.7,2513.1,0.7921]
[1746991347648,3.97890411,2513.3,2511.9,14.316]
[1746991347848,6.8017336,2514.0,2511.9,14.316]
[1746991347849,0.7944,2514.2,2512.4,0.7921]
[1746991348147,3.97794283,2513.9,2512.6,0.7921]
[1746991348308,3.9781999,2513.7,2512.9,0.7921]
[1746991348722,3.97837872,2513.6,2512.9,0.7921]
[1746991349712,8.65274094,2513.7,2512.9,0.7921]
[1746991349916,8.65274094,2513.7,2512.9,1.15401]
[1746991350782,3.97845078,2513.6,2512.9,1.15401]
[1746991350983,3.97845078,2513.6,2512.9,0.7921]
[1746991350984,3.97871435,2513.4,2512.9,0.7921]
[1746991351130,3.95101308,2513.4,2512.7,0.8191]
[1746991351332,3.9800995,2512.5,2511.2,0.8191]
[1746991351547,3.9800343,2512.6,2511.4,0.8191]
[1746991351878,3.9800343,2512.6,2511.6,0.7558]
[1746991352024,0.55,2512.7,2511.6,0.7558]
[1746991352231,3.98066582,2512.2,2511.6,0.7558]
[1746991352561,3.98051097,2512.3,2511.6,0.7558]
[1746991352973,3.95101308,2512.2,2511.6,0.7558]
[1746991353266,6.77201308,2512.2,2511.6,0.7558]
[1746991353470,0.55,2512.1,2511.6,0.7558]
[1746991353666,4.53077825,2512.1,2511.3,0.7558]
[1746991354430,3.98077825,2512.1,2511.3,0.7558]
[1746991354635,2.821,2512.1,2511.5,0.7833]
[1746991355854,6.80185501,2512.1,2511.5,0.7833]
[1746991357075,2.821,2512.1,2511.5,0.7833]
[1746991358014,3.98098567,2512.0,2511.5,0.7833]
[1746991358514,3.98109026,2511.9,2511.5,0.7833]
[1746991359813,3.98097181,2512.0,2511.5,0.7833]
[1746991360816,2.821,2512.1,2511.5,1.07684883]
[1746991361019,2.82,2512.3,2511.5,1.07684883]
[1746991361626,3.98065271,2512.2,2511.5,1.27208232]
[1746991361822,3.98065271,2512.2,2511.5,1.67024382]
[1746991362526,3.98065271,2512.2,2511.7,0.39813344]
[1746991363088,6.80045934,2512.3,2511.6,0.39814978]
[1746991363293,2.82,2512.3,2511.7,0.39812768]
[1746991363492,6.80055294,2512.3,2511.7,0.39812768]
[1746991363791,3.9805944,2512.2,2511.7,0.39812768]
[1746991363987,6.80043346,2512.3,2511.6,0.39814806]
[1746991364732,3.98066995,2512.2,2511.6,0.39814806]
[1746991364929,6.80047683,2512.3,2511.8,0.39812036]
[1746991365338,3.98057982,2512.2,2511.7,0.39813066]
[1746991366117,3.98075053,2512.1,2511.6,0.39814642]
[1746991366445,3.98064431,2512.2,2511.7,0.39813579]
[1746991368740,2.819,2512.1,2511.5,0.48878232]
[1746991368954,2.819,2512.1,2511.8,0.39811129]
[1746991370765,0.7754,2512.8,2512.2,0.8093]
[1746991370967,0.7754,2512.8,2512.3,0.39804163]
[1746991370968,2.818,2512.8,2512.3,0.39804163]
[1746991371169,2.818,2512.8,2512.2,1.20735198]
[1746991371467,2.818,2512.8,2512.3,0.39804163]
[1746991371764,2.818,2512.8,2512.2,0.8093]
[1746991372063,2.818,2512.8,2512.3,0.79605822]
[1746991372445,2.818,2512.8,2512.4,0.79604784]
[1746991372865,3.95101308,2512.5,2511.8,0.8093]
[1746991373063,8.0,2512.7,2511.7,0.8093]
[1746991373265,2.818,2512.6,2512.4,1.60533222]
[1746991373481,2.818,2512.6,2512.5,0.79599823]
[1746991373678,2.818,2512.6,2512.4,0.8093]
[1746991375098,2.818,2512.6,2512.1,0.79613592]
[1746991375099,2.818,2512.6,2512.1,0.7694]
[1746991375389,6.79801421,2512.6,2512.1,0.7694]
[1746991375563,2.818,2512.6,2512.1,0.29748474]
[1746991375769,2.818,2512.6,2511.9,0.7694]
[1746991375770,8.73562114,2512.5,2511.9,0.7694]
[1746991376358,3.9803309,2512.4,2511.9,0.7694]
[1746991376875,3.98045623,2512.3,2511.9,0.7694]
[1746991377296,3.98032884,2512.4,2511.9,0.7694]
[1746991377600,3.98035358,2512.4,2511.9,0.7694]
[1746991377753,3.98041635,2512.3,2511.8,0.79623752]
[1746991377953,3.98041635,2512.3,2511.8,1.09199088]
[1746991378574,3.9805908,2512.2,2511.8,0.29575336]
[1746991378771,3.98048796,2512.3,2511.8,0.79623736]
[1746991380575,0.22300241,2512.2,2511.9,0.79620764]
[1746991380975,0.22300241,2512.2,2511.6,1.56570248]
[1746991381160,0.22300241,2512.2,2512.0,0.79617291]
[1746991381374,0.22300241,2512.1,2511.9,0.7961929]
[1746991381809,0.22300241,2512.1,2512.0,1.54977834]
[1746991382303,0.22300241,2512.2,2512.0,1.54977834]
[1746991383020,0.22300241,2512.2,2512.1,8.79614665]
[1746991383211,0.0574184,2512.2,2512.1,8.79614665]
[1746991383531,2.815,2512.4,2512.2,0.79610138]
[1746991384085,2.815,2512.4,2512.1,0.79614665]
[1746991384086,4.67447603,2512.7,2512.4,0.79603932]
[1746991384440,4.67447603,2513.3,2512.9,0.79587571]
[1746991384620,2.815,2513.2,2512.9,0.79587571]
[1746991385225,0.8149,2513.9,2513.3,0.7621]
[1746991385442,3.95101308,2514.2,2512.8,0.79590824]
[1746991385443,3.97878859,2513.4,2512.8,0.79590824]
[1746991385602,3.97899695,2513.2,2512.7,0.79594111]
[1746991386008,6.76601308,2513.3,2512.7,0.79594111]
[1746991386586,6.76601308,2513.3,2512.6,0.7621]
[1746991386788,6.76601308,2513.3,2512.8,0.79592006]
[1746991387121,6.76601308,2513.3,2513.0,0.79586092]
[1746991387290,6.76601308,2513.3,2512.9,0.79587726]
[1746991387482,6.76601308,2513.3,2512.9,0.79587943]
[1746991388310,6.76601308,2513.3,2513.0,0.79586019]
[1746991388753,6.76601308,2513.3,2513.0,0.79585472]
[1746991389073,0.7662,2513.8,2513.1,1.5560118]
[1746991389256,3.5872,2514.1,2513.3,0.7957623]
[1746991389412,3.5872,2514.1,2514.0,0.79554494]
[1746991389413,2.821,2514.1,2514.0,0.79554494]
[1746991389935,3.95101308,2514.5,2514.2,0.79547708]
[1746991390145,2.864,2514.4,2514.2,0.79547708]
[1746991390454,2.864,2514.4,2514.0,0.79554494]
[1746991390455,2.864,2514.4,2513.6,0.7602]
[1746991390609,6.84117471,2514.4,2513.8,0.79558096]
[1746991390808,6.84117471,2514.4,2513.8,0.79560824]
[1746991391112,2.864,2514.4,2513.9,0.79554739]
[1746991391934,2.864,2514.4,2514.0,0.79554235]
[1746991392744,2.864,2514.4,2513.2,0.7602]
[1746991392745,2.03796943,2514.4,2513.2,0.7602]
[1746991392908,5.98898251,2514.4,2513.8,0.79558189]
[1746991393104,4.52727051,2514.3,2513.8,0.79558189]
[1746991393950,2.812,2514.2,2513.7,0.79563191]
[1746991394243,3.95101308,2514.1,2513.2,1.55598168]
[1746991394548,3.95101308,2514.1,2513.5,0.79568519]
[1746991394848,3.95101308,2513.7,2513.3,0.79576567]
[1746991395204,3.95101308,2513.7,2513.2,0.7602]
[1746991395411,1.3414,2514.0,2513.2,0.7602]
[1746991395412,3.95101308,2514.0,2513.2,0.7602]
[1746991395605,3.95101308,2514.0,2513.3,0.79574981]
[1746991395847,3.95101308,2514.0,2513.5,0.79567647]
[1746991396050,3.95101308,2514.0,2513.2,0.7602]
[1746991396247,3.95101308,2514.0,2513.7,0.79561494]
[1746991396465,2.863,2514.4,2513.5,0.7957032]
[1746991396613,5.93898251,2514.6,2514.1,0.79548474]
[1746991396807,1.98796943,2514.8,2514.4,0.8246]
[1746991397013,4.79896943,2514.8,2514.4,1.62000866]
[1746991397260,4.79896943,2514.8,2514.2,0.79547305]
[1746991397612,4.79896943,2514.8,2514.1,0.8246]
[1746991397868,4.79896943,2514.8,2514.3,0.79542947]
[1746991398145,4.79896943,2514.8,2514.5,0.79537068]
[1746991398649,8.77544242,2514.8,2514.3,0.79544257]
[1746991398808,3.976935,2514.5,2513.8,1.58769796]
[1746991399014,3.976935,2514.5,2513.9,0.79556229]
[1746991399226,3.95101308,2514.3,2513.9,0.9940772]
[1746991399847,7.9283059,2514.3,2513.9,0.19851491]
[1746991400155,7.9283059,2514.3,2513.6,8.79566102]
[1746991400156,2.811,2514.2,2513.6,1.58774523]
[1746991400364,3.95101308,2514.0,2513.6,0.7921]